[Event "Live Chess"]
[Site "Chess.com"]
[Date "2023.05.21"]
[Round "-"]
[White "toxic_rabbit"]
[Black "Rusty_Bridges"]
[Result "1-0"]
[WhiteElo "1985"]
[BlackElo "1510"]
[TimeControl "300"]
[EndTime "2:56:34 PDT"]
[Termination "toxic_rabbit won by resignation"]

1. e4 {[%clk 0:04:58.6]} 1... d6 {[%clk 0:04:58.2]} 2. d4 {[%clk 0:04:57.8]}
2... Nf6 {[%clk 0:04:56.5]} 3. Bd3 {[%clk 0:04:57.1]} 3... Nbd7 {[%clk
0:04:53.5]} 4. Ne2 {[%clk 0:04:56.4]} 4... e5 {[%clk 0:04:52.6]} 5. c3 {[%clk
0:04:55]} 5... h6 {[%clk 0:04:50.9]} 6. O-O {[%clk 0:04:54.4]} 6... c6 {[%clk
0:04:50.1]} 7. f4 {[%clk 0:04:53.9]} 7... exd4 {[%clk 0:04:46.4]} 8. cxd4 {[%clk
0:04:53]} 8... Qc7 {[%clk 0:04:44.3]} 9. Nbc3 {[%clk 0:04:52]} 9... Be7 {[%clk
0:04:43.3]} 10. h3 {[%clk 0:04:51.6]} 10... O-O {[%clk 0:04:42.2]} 11. e5 {[%clk
0:04:51.2]} 11... dxe5 {[%clk 0:04:41]} 12. fxe5 {[%clk 0:04:50.8]} 12... Nd5
{[%clk 0:04:40]} 13. Nxd5 {[%clk 0:04:47.4]} 13... cxd5 {[%clk 0:04:38.9]} 14.
Nf4 {[%clk 0:04:47.3]} 14... Nb6 {[%clk 0:04:32.8]} 15. Qf3 {[%clk 0:04:45.4]}
15... Qd7 {[%clk 0:04:27.5]} 16. Qg3 {[%clk 0:04:40.8]} 16... Bg5 {[%clk
0:04:22.6]} 17. Nh5 {[%clk 0:04:38]} 17... g6 {[%clk 0:04:14.9]} 18. Bxg5 {[%clk
0:04:33.5]} 18... hxg5 {[%clk 0:04:13.2]} 19. Nf6+ {[%clk 0:04:32.5]} 1-0

[Event "Live Chess"]
[Site "Chess.com"]
[Date "2023.05.21"]
[Round "-"]
[White "gmnorfolk"]
[Black "Reggie016"]
[Result "1-0"]
[WhiteElo "2121"]
[BlackElo "1136"]
[TimeControl "300"]
[EndTime "2:56:38 PDT"]
[Termination "gmnorfolk won by resignation"]

1. d4 {[%clk 0:04:58]} 1... e6 {[%clk 0:04:59.2]} 2. c4 {[%clk 0:04:56.7]} 2...
f5 {[%clk 0:04:57.3]} 3. Nc3 {[%clk 0:04:53.3]} 3... Bb4 {[%clk 0:04:55.8]} 4.
Qc2 {[%clk 0:04:51.7]} 4... Nf6 {[%clk 0:04:53.5]} 5. Bd2 {[%clk 0:04:48]} 5...
O-O {[%clk 0:04:48]} 6. Nf3 {[%clk 0:04:46.9]} 6... b6 {[%clk 0:04:41.9]} 7. g3
{[%clk 0:04:45.1]} 7... Bb7 {[%clk 0:04:40.6]} 8. Bg2 {[%clk 0:04:43.6]} 8... d6
{[%clk 0:04:32.1]} 9. O-O {[%clk 0:04:41.6]} 9... Nbd7 {[%clk 0:04:30.6]} 10. a3
{[%clk 0:04:35.7]} 10... Bxc3 {[%clk 0:04:29.3]} 11. Bxc3 {[%clk 0:04:35.3]}
11... Ne4 {[%clk 0:04:26.9]} 12. Nd2 {[%clk 0:04:34.4]} 12... Ndf6 {[%clk
0:04:19.9]} 13. f3 {[%clk 0:04:32.1]} 13... Nxc3 {[%clk 0:04:04.5]} 14. Qxc3
{[%clk 0:04:32]} 14... Rb8 {[%clk 0:03:55.6]} 15. b4 {[%clk 0:04:29.2]} 15...
Qe7 {[%clk 0:03:47.6]} 16. e4 {[%clk 0:04:27.9]} 16... fxe4 {[%clk 0:03:42.4]}
17. fxe4 {[%clk 0:04:26.6]} 17... c5 {[%clk 0:03:30.5]} 18. bxc5 {[%clk
0:04:16.1]} 18... dxc5 {[%clk 0:03:25.6]} 19. dxc5 {[%clk 0:04:15.2]} 19...
Qxc5+ {[%clk 0:03:21.7]} 20. Kh1 {[%clk 0:04:11.7]} 20... Rbd8 {[%clk
0:03:09.3]} 21. Nb3 {[%clk 0:04:05.4]} 21... Qc6 {[%clk 0:02:55.9]} 22. Rae1
{[%clk 0:04:00.5]} 22... b5 {[%clk 0:02:45.6]} 23. Na5 {[%clk 0:03:51.4]} 23...
Qb6 {[%clk 0:02:34.1]} 24. Nxb7 {[%clk 0:03:50.4]} 24... Qxb7 {[%clk 0:02:34]}
25. e5 {[%clk 0:03:47.8]} 25... Nd5 {[%clk 0:02:14.5]} 26. cxd5 {[%clk
0:03:44.4]} 26... Rxd5 {[%clk 0:02:13.7]} 27. Rxf8+ {[%clk 0:03:41.1]} 27...
Kxf8 {[%clk 0:02:11.2]} 28. Bxd5 {[%clk 0:03:37]} 28... Qxd5+ {[%clk 0:02:10.5]}
29. Kg1 {[%clk 0:03:36.2]} 29... Kf7 {[%clk 0:02:05.2]} 30. Qe3 {[%clk
0:03:31.7]} 1-0

[Event "Live Chess"]
[Site "Chess.com"]
[Date "2023.05.21"]
[Round "-"]
[White "Biranidun"]
[Black "RockTroll"]
[Result "0-1"]
[WhiteElo "2539"]
[BlackElo "2227"]
[TimeControl "300"]
[EndTime "2:56:45 PDT"]
[Termination "RockTroll won by resignation"]

1. e4 {[%clk 0:04:58.8]} 1... e5 {[%clk 0:04:57.8]} 2. Nf3 {[%clk 0:04:57.8]}
2... Nc6 {[%clk 0:04:57.4]} 3. Bc4 {[%clk 0:04:56.6]} 3... Bc5 {[%clk
0:04:56.8]} 4. c3 {[%clk 0:04:55.1]} 4... Nf6 {[%clk 0:04:55.7]} 5. d4 {[%clk
0:04:53.9]} 5... exd4 {[%clk 0:04:54.5]} 6. b4 {[%clk 0:04:53.6]} 6... Bb6
{[%clk 0:04:53.9]} 7. e5 {[%clk 0:04:52.7]} 7... d5 {[%clk 0:04:53]} 8. exf6
{[%clk 0:04:51.3]} 8... dxc4 {[%clk 0:04:51.3]} 9. Qe2+ {[%clk 0:04:50.8]} 9...
Be6 {[%clk 0:04:50]} 10. b5 {[%clk 0:04:50.2]} 10... Nb4 {[%clk 0:04:48.8]} 11.
fxg7 {[%clk 0:04:43.4]} 11... Rg8 {[%clk 0:04:48]} 12. cxb4 {[%clk 0:04:42.7]}
12... Qf6 {[%clk 0:04:45]} 13. Qe5 {[%clk 0:04:17.9]} 13... Qxe5+ {[%clk
0:04:43.6]} 14. Nxe5 {[%clk 0:04:17.8]} 14... O-O-O {[%clk 0:04:40.5]} 15. Na3
{[%clk 0:04:05.2]} 15... c3 {[%clk 0:04:35.9]} 16. Bg5 {[%clk 0:03:42.6]} 16...
Rd5 {[%clk 0:04:31.8]} 17. Bf6 {[%clk 0:03:41.5]} 17... d3 {[%clk 0:04:21.3]}
18. O-O {[%clk 0:03:33.7]} 18... Bd4 {[%clk 0:03:57.6]} 19. Nac4 {[%clk
0:02:52.9]} 19... c2 {[%clk 0:03:41.3]} 20. Rac1 {[%clk 0:02:30.5]} 20... Bf5
{[%clk 0:03:32.7]} 21. g4 {[%clk 0:01:34.1]} 21... Bg6 {[%clk 0:02:58.8]} 22.
Nxg6 {[%clk 0:00:50.3]} 22... Bxf6 {[%clk 0:02:56.6]} 23. Nf4 {[%clk 0:00:34.2]}
23... Rd4 {[%clk 0:02:55.9]} 24. Nxd3 {[%clk 0:00:30]} 24... Rxc4 {[%clk
0:02:53.2]} 25. Rfe1 {[%clk 0:00:25.6]} 25... Rxg7 {[%clk 0:02:48.8]} 26. h3
{[%clk 0:00:24.1]} 26... h5 {[%clk 0:02:46.8]} 27. f3 {[%clk 0:00:19.4]} 27...
b6 {[%clk 0:02:31.3]} 28. Re2 {[%clk 0:00:18.4]} 28... hxg4 {[%clk 0:02:26.2]}
29. hxg4 {[%clk 0:00:18.3]} 29... Bg5 {[%clk 0:02:24.6]} 30. Rcxc2 {[%clk
0:00:17.1]} 30... Rd4 {[%clk 0:02:22.8]} 31. Nf2 {[%clk 0:00:15.7]} 31... Rxb4
{[%clk 0:02:20.7]} 32. Ne4 {[%clk 0:00:13.7]} 32... Kb7 {[%clk 0:02:17.3]} 33.
Nxg5 {[%clk 0:00:12]} 33... Rxg5 {[%clk 0:02:16.9]} 34. Re7 {[%clk 0:00:11.6]}
34... Rc5 {[%clk 0:02:10.2]} 35. Rxc5 {[%clk 0:00:11]} 35... bxc5 {[%clk
0:02:09.5]} 36. Rxf7 {[%clk 0:00:10.9]} 36... c4 {[%clk 0:02:08.1]} 37. Rf4
{[%clk 0:00:09.1]} 37... Kb6 {[%clk 0:02:06.6]} 38. g5 {[%clk 0:00:07.8]} 38...
Kxb5 {[%clk 0:02:05.6]} 39. g6 {[%clk 0:00:07.4]} 39... Rb1+ {[%clk 0:02:03.5]}
40. Kf2 {[%clk 0:00:07]} 40... c3 {[%clk 0:02:02.8]} 41. g7 {[%clk 0:00:06]}
41... c2 {[%clk 0:02:02.2]} 42. g8=Q {[%clk 0:00:05.5]} 42... c1=Q {[%clk
0:02:01.4]} 43. Qd5+ {[%clk 0:00:05.2]} 43... Qc5+ {[%clk 0:01:59.5]} 44. Qxc5+
{[%clk 0:00:03.4]} 44... Kxc5 {[%clk 0:01:59.4]} 45. Ra4 {[%clk 0:00:02.7]}
45... Rb2+ {[%clk 0:01:58.1]} 46. Kg3 {[%clk 0:00:02.3]} 46... Kb6 {[%clk
0:01:57.5]} 47. Ra3 {[%clk 0:00:01.9]} 47... a5 {[%clk 0:01:56.2]} 48. f4 {[%clk
0:00:01.8]} 48... c5 {[%clk 0:01:54.7]} 49. f5 {[%clk 0:00:01.7]} 49... Rb1
{[%clk 0:01:52.2]} 50. Rf3 {[%clk 0:00:01.6]} 50... Rd1 {[%clk 0:01:48.7]} 51.
Kf4 {[%clk 0:00:01.5]} 51... c4 {[%clk 0:01:46.7]} 52. Kg5 {[%clk 0:00:01.4]}
52... Kc5 {[%clk 0:01:45.8]} 53. f6 {[%clk 0:00:01.3]} 53... Rd8 {[%clk
0:01:42.9]} 54. f7 {[%clk 0:00:01.2]} 54... Kb4 {[%clk 0:01:42.2]} 55. Kf6
{[%clk 0:00:01.1]} 55... c3 {[%clk 0:01:40.9]} 56. Ke7 {[%clk 0:00:01]} 56...
Rc8 {[%clk 0:01:39.1]} 57. Rf4+ {[%clk 0:00:00.9]} 57... Ka3 {[%clk 0:01:37.1]}
58. Rc4 {[%clk 0:00:00.8]} 58... Rxc4 {[%clk 0:01:34.7]} 59. f8=Q {[%clk
0:00:00.7]} 59... c2 {[%clk 0:01:32.2]} 60. Kd7+ {[%clk 0:00:00.6]} 60... Kb2
{[%clk 0:01:31.2]} 61. Qf3 {[%clk 0:00:00.5]} 61... c1=Q {[%clk 0:01:29.4]} 62.
Kd6 {[%clk 0:00:00.4]} 62... Qd2+ {[%clk 0:01:28.2]} 0-1

[Event "Live Chess"]
[Site "Chess.com"]
[Date "2023.05.21"]
[Round "-"]
[White "JohanKjeldahl"]
[Black "hopton5"]
[Result "1-0"]
[WhiteElo "1886"]
[BlackElo "1216"]
[TimeControl "300"]
[EndTime "2:56:51 PDT"]
[Termination "JohanKjeldahl won by resignation"]

1. e4 {[%clk 0:04:57.2]} 1... c5 {[%clk 0:04:56.6]} 2. Nf3 {[%clk 0:04:55.3]}
2... d6 {[%clk 0:04:54.7]} 3. d4 {[%clk 0:04:54.4]} 3... cxd4 {[%clk 0:04:53]}
4. Nxd4 {[%clk 0:04:53.6]} 4... Nf6 {[%clk 0:04:50]} 5. Nc3 {[%clk 0:04:53.1]}
5... a6 {[%clk 0:04:42.2]} 6. Bg5 {[%clk 0:04:51.3]} 6... e5 {[%clk 0:04:37.8]}
7. Nb3 {[%clk 0:04:48.8]} 7... Be7 {[%clk 0:04:35.9]} 8. Qd2 {[%clk 0:04:47.3]}
8... b5 {[%clk 0:04:23.5]} 9. a3 {[%clk 0:04:44.7]} 9... Bb7 {[%clk 0:04:17.2]}
10. f3 {[%clk 0:04:43.5]} 10... Nbd7 {[%clk 0:04:05.1]} 11. O-O-O {[%clk
0:04:41.7]} 11... Rc8 {[%clk 0:03:28.4]} 12. h4 {[%clk 0:04:39.3]} 12... Nc5
{[%clk 0:02:10]} 13. Kb1 {[%clk 0:04:36]} 13... Nxb3 {[%clk 0:02:07]} 14. cxb3
{[%clk 0:04:35.1]} 14... Qd7 {[%clk 0:01:21.5]} 15. g4 {[%clk 0:04:30.2]} 15...
a5 {[%clk 0:00:43.9]} 16. Bxb5 {[%clk 0:04:17.3]} 1-0

[Event "Live Chess"]
[Site "Chess.com"]
[Date "2023.05.21"]
[Round "-"]
[White "Davidagye"]
[Black "Doge_Dandolo"]
[Result "0-1"]
[WhiteElo "1670"]
[BlackElo "1865"]
[TimeControl "300"]
[EndTime "2:56:51 PDT"]
[Termination "Doge_Dandolo won by resignation"]

1. b4 {[%clk 0:04:57.8]} 1... Nf6 {[%clk 0:04:52.9]} 2. Bb2 {[%clk 0:04:57]}
2... e6 {[%clk 0:04:49.9]} 3. a3 {[%clk 0:04:55.1]} 3... b6 {[%clk 0:04:46.3]}
4. Nf3 {[%clk 0:04:50.8]} 4... Bb7 {[%clk 0:04:42.5]} 5. e3 {[%clk 0:04:49.4]}
5... Be7 {[%clk 0:04:37.4]} 6. Be2 {[%clk 0:04:48.3]} 6... O-O {[%clk
0:04:35.8]} 7. O-O {[%clk 0:04:47.3]} 7... a5 {[%clk 0:04:19.7]} 8. b5 {[%clk
0:04:42.3]} 8... d6 {[%clk 0:04:16]} 9. d4 {[%clk 0:04:38.4]} 9... Nbd7 {[%clk
0:04:13.9]} 10. Nbd2 {[%clk 0:04:35.9]} 10... Re8 {[%clk 0:04:11.2]} 11. a4
{[%clk 0:04:33.8]} 11... Bf8 {[%clk 0:04:09.1]} 12. c4 {[%clk 0:04:32]} 12... e5
{[%clk 0:03:58.7]} 13. Qc2 {[%clk 0:04:27.9]} 13... exd4 {[%clk 0:03:52]} 14.
Nxd4 {[%clk 0:04:25.7]} 14... Nc5 {[%clk 0:03:49.3]} 15. Bf3 {[%clk 0:04:23.4]}
15... Bxf3 {[%clk 0:03:43.5]} 16. N2xf3 {[%clk 0:04:21.8]} 16... Nfe4 {[%clk
0:03:41.4]} 17. Nc6 {[%clk 0:04:19.1]} 17... Qd7 {[%clk 0:03:38.8]} 18. Rad1
{[%clk 0:04:16]} 18... Qf5 {[%clk 0:03:31.5]} 19. Rd5 {[%clk 0:04:11.5]} 19...
Qg6 {[%clk 0:03:27.9]} 20. h4 {[%clk 0:04:07.8]} 20... Nf6 {[%clk 0:03:16.3]}
21. Rg5 {[%clk 0:04:04.7]} 21... Qxc2 {[%clk 0:03:12.9]} 22. Bxf6 {[%clk
0:04:00.8]} 22... Ne6 {[%clk 0:03:09.7]} 23. Rg3 {[%clk 0:03:57.8]} 23... Kh8
{[%clk 0:03:07.5]} 24. Bd4 {[%clk 0:03:52.5]} 24... Qxc4 {[%clk 0:02:57.6]} 25.
h5 {[%clk 0:03:51.2]} 25... Qxa4 {[%clk 0:02:51.9]} 26. h6 {[%clk 0:03:50.2]}
26... Nxd4 {[%clk 0:02:50.2]} 27. Nfxd4 {[%clk 0:03:47]} 27... g6 {[%clk
0:02:41.7]} 0-1

[Event "Live Chess"]
[Site "Chess.com"]
[Date "2023.05.21"]
[Round "-"]
[White "bedsdrout"]
[Black "JamesWallman"]
[Result "0-1"]
[WhiteElo "466"]
[BlackElo "796"]
[TimeControl "300"]
[EndTime "2:56:52 PDT"]
[Termination "JamesWallman won by checkmate"]

1. b4 {[%clk 0:04:49.9]} 1... e5 {[%clk 0:04:56.6]} 2. Nf3 {[%clk 0:04:39.2]}
2... d6 {[%clk 0:04:49.5]} 3. Bb2 {[%clk 0:04:34.4]} 3... Nf6 {[%clk 0:04:43.8]}
4. e3 {[%clk 0:04:31]} 4... Bg4 {[%clk 0:04:39]} 5. Be2 {[%clk 0:04:16.6]} 5...
a6 {[%clk 0:04:35.2]} 6. Nc3 {[%clk 0:04:11.1]} 6... Nc6 {[%clk 0:04:33.2]} 7.
O-O {[%clk 0:03:56.5]} 7... Nxb4 {[%clk 0:04:30.8]} 8. Nb5 {[%clk 0:03:23]} 8...
axb5 {[%clk 0:04:24.2]} 9. Bxb5+ {[%clk 0:03:21.5]} 9... c6 {[%clk 0:04:20.2]}
10. Bc4 {[%clk 0:03:16]} 10... Bf5 {[%clk 0:04:14.3]} 11. c3 {[%clk 0:02:53.7]}
11... Na6 {[%clk 0:03:51]} 12. Bb3 {[%clk 0:02:22]} 12... b5 {[%clk 0:03:43.9]}
13. Ng5 {[%clk 0:01:45.7]} 13... d5 {[%clk 0:03:26.5]} 14. c4 {[%clk 0:01:42.7]}
14... h6 {[%clk 0:03:18.2]} 15. Nh3 {[%clk 0:01:38.3]} 15... Bxh3 {[%clk
0:03:14.6]} 16. f4 {[%clk 0:01:23.7]} 16... Bf5 {[%clk 0:03:04.3]} 17. Qf3
{[%clk 0:01:19.3]} 17... Be4 {[%clk 0:03:00.7]} 18. Qf2 {[%clk 0:01:16.7]} 18...
dxc4 {[%clk 0:02:54.7]} 19. fxe5 {[%clk 0:01:14.8]} 19... cxb3 {[%clk
0:02:44.8]} 20. exf6 {[%clk 0:01:13.2]} 20... gxf6 {[%clk 0:02:35.7]} 21. Bxf6
{[%clk 0:01:11.5]} 21... Qd7 {[%clk 0:02:23.7]} 22. Bxh8 {[%clk 0:01:05.8]}
22... O-O-O {[%clk 0:02:20.8]} 23. Qf4 {[%clk 0:00:57.4]} 23... Bd5 {[%clk
0:02:07.7]} 24. Rfc1 {[%clk 0:00:43.8]} 24... Bd6 {[%clk 0:01:53.7]} 25. Qxh6
{[%clk 0:00:29.4]} 25... Qg4 {[%clk 0:01:38.2]} 26. h3 {[%clk 0:00:15.9]} 26...
Qxg2# {[%clk 0:01:31.3]} 0-1

[Event "Live Chess"]
[Site "Chess.com"]
[Date "2023.05.21"]
[Round "-"]
[White "Crowded_House"]
[Black "RedRook90"]
[Result "0-1"]
[WhiteElo "1666"]
[BlackElo "1962"]
[TimeControl "300"]
[EndTime "2:57:00 PDT"]
[Termination "RedRook90 won by resignation"]

1. d4 {[%clk 0:04:59.2]} 1... d5 {[%clk 0:04:57.4]} 2. Bg5 {[%clk 0:04:58.4]}
2... Nf6 {[%clk 0:04:55.6]} 3. e3 {[%clk 0:04:57.2]} 3... e6 {[%clk 0:04:54.4]}
4. Nf3 {[%clk 0:04:56.2]} 4... Be7 {[%clk 0:04:53.8]} 5. Bd3 {[%clk 0:04:55.5]}
5... O-O {[%clk 0:04:53.5]} 6. Nbd2 {[%clk 0:04:54.2]} 6... c5 {[%clk 0:04:53]}
7. c3 {[%clk 0:04:52.4]} 7... Nc6 {[%clk 0:04:51.3]} 8. O-O {[%clk 0:04:50.5]}
8... b6 {[%clk 0:04:49.8]} 9. Qb1 {[%clk 0:04:46.9]} 9... h6 {[%clk 0:04:47.6]}
10. Bh4 {[%clk 0:04:45.8]} 10... Bb7 {[%clk 0:04:43.2]} 11. Re1 {[%clk
0:04:44.3]} 11... Rc8 {[%clk 0:04:33.6]} 12. Bg3 {[%clk 0:04:42.7]} 12... Bd6
{[%clk 0:04:26.5]} 13. Bxd6 {[%clk 0:04:39.8]} 13... Qxd6 {[%clk 0:04:26.4]} 14.
e4 {[%clk 0:04:34]} 14... dxe4 {[%clk 0:04:24.9]} 15. Nxe4 {[%clk 0:04:33.3]}
15... Nxe4 {[%clk 0:04:23.6]} 16. Bxe4 {[%clk 0:04:32.3]} 16... cxd4 {[%clk
0:04:23.1]} 17. Bxc6 {[%clk 0:04:23.3]} 17... Qxc6 {[%clk 0:04:19.4]} 18. cxd4
{[%clk 0:04:17.7]} 18... Rfd8 {[%clk 0:04:18.9]} 19. Rc1 {[%clk 0:04:13.5]}
19... Qxc1+ {[%clk 0:04:06.8]} 20. Qxc1 {[%clk 0:04:10.6]} 20... Rxc1+ {[%clk
0:04:06.7]} 21. Rxc1 {[%clk 0:04:09.4]} 21... Bxf3 {[%clk 0:04:06.4]} 22. gxf3
{[%clk 0:04:07.9]} 22... Rxd4 {[%clk 0:04:06.1]} 23. Rc7 {[%clk 0:03:54.4]}
23... a5 {[%clk 0:03:39.2]} 24. Rc2 {[%clk 0:03:48.1]} 24... b5 {[%clk
0:03:27.9]} 25. Kg2 {[%clk 0:03:47.4]} 25... f6 {[%clk 0:03:24.6]} 26. a3 {[%clk
0:03:45.9]} 26... Kf7 {[%clk 0:03:18.8]} 27. Rc5 {[%clk 0:03:39.1]} 27... Rd5
{[%clk 0:03:17.6]} 28. Rc7+ {[%clk 0:03:33.6]} 28... Kg6 {[%clk 0:03:16.3]} 29.
Rc2 {[%clk 0:03:32.4]} 29... a4 {[%clk 0:03:13.3]} 30. Re2 {[%clk 0:03:24.6]}
30... e5 {[%clk 0:03:09.5]} 31. Rc2 {[%clk 0:03:23]} 31... Kf5 {[%clk
0:03:07.7]} 32. Re2 {[%clk 0:03:17.6]} 32... Rd3 {[%clk 0:02:58]} 33. Re4 {[%clk
0:03:09.5]} 33... Rb3 {[%clk 0:02:56.1]} 34. Re2 {[%clk 0:03:05]} 34... Kf4
{[%clk 0:02:42]} 35. Rc2 {[%clk 0:03:02.6]} 35... Rxf3 {[%clk 0:02:36.3]} 36.
Rc7 {[%clk 0:02:56.9]} 36... Rb3 {[%clk 0:02:26.9]} 37. Rc2 {[%clk 0:02:54.1]}
37... g6 {[%clk 0:02:22.6]} 38. Re2 {[%clk 0:02:51.4]} 38... e4 {[%clk 0:02:21]}
39. Rc2 {[%clk 0:02:47.7]} 39... f5 {[%clk 0:02:19.3]} 40. Re2 {[%clk
0:02:46.4]} 40... g5 {[%clk 0:02:18.2]} 41. Rc2 {[%clk 0:02:45.3]} 41... h5
{[%clk 0:02:17.6]} 42. Re2 {[%clk 0:02:44.4]} 42... Kg4 {[%clk 0:02:15.1]} 43.
Rc2 {[%clk 0:02:40.2]} 43... f4 {[%clk 0:02:13.9]} 44. Rd2 {[%clk 0:02:35.5]}
44... e3 {[%clk 0:02:12.8]} 45. fxe3 {[%clk 0:02:33.9]} 45... fxe3 {[%clk
0:02:11.2]} 46. Re2 {[%clk 0:02:32.1]} 46... Kf4 {[%clk 0:02:10.2]} 47. h3
{[%clk 0:02:28.9]} 47... g4 {[%clk 0:02:09.2]} 48. hxg4 {[%clk 0:02:27.1]} 48...
hxg4 {[%clk 0:02:09.1]} 49. Rc2 {[%clk 0:02:16.5]} 49... Rd3 {[%clk 0:02:06.9]}
50. Kf1 {[%clk 0:02:00.5]} 50... Rd2 {[%clk 0:02:03.2]} 51. Rc8 {[%clk
0:01:49.6]} 51... Rxb2 {[%clk 0:02:02]} 52. Rf8+ {[%clk 0:01:49.3]} 52... Kg3
{[%clk 0:01:58.7]} 53. Re8 {[%clk 0:01:46.5]} 53... Rb3 {[%clk 0:01:55.8]} 0-1

[Event "Live Chess"]
[Site "Chess.com"]
[Date "2023.05.21"]
[Round "-"]
[White "WombatIn_A_Box"]
[Black "apl_trainer"]
[Result "0-1"]
[WhiteElo "554"]
[BlackElo "1748"]
[TimeControl "300"]
[EndTime "2:57:14 PDT"]
[Termination "apl_trainer won by checkmate"]

1. e4 {[%clk 0:04:55.1]} 1... c5 {[%clk 0:04:59]} 2. Nf3 {[%clk 0:04:49.5]} 2...
e6 {[%clk 0:04:58]} 3. d4 {[%clk 0:04:48.7]} 3... cxd4 {[%clk 0:04:56.8]} 4.
Nxd4 {[%clk 0:04:47.8]} 4... Nc6 {[%clk 0:04:55.8]} 5. Nxc6 {[%clk 0:04:46.5]}
5... bxc6 {[%clk 0:04:54.5]} 6. Nc3 {[%clk 0:04:44.7]} 6... d5 {[%clk
0:04:52.1]} 7. exd5 {[%clk 0:04:42.7]} 7... cxd5 {[%clk 0:04:51.2]} 8. Ne2
{[%clk 0:04:39.4]} 8... Nf6 {[%clk 0:04:49.2]} 9. b3 {[%clk 0:04:38.5]} 9... Ne4
{[%clk 0:04:44.4]} 10. f3 {[%clk 0:04:31.6]} 10... Bb4+ {[%clk 0:04:39.4]} 11.
c3 {[%clk 0:04:26.8]} 11... Nxc3 {[%clk 0:04:22.2]} 12. Nxc3 {[%clk 0:04:24.2]}
12... Bxc3+ {[%clk 0:04:20.8]} 13. Bd2 {[%clk 0:04:18.8]} 13... Bxa1 {[%clk
0:04:18.4]} 14. Qxa1 {[%clk 0:04:17.7]} 14... O-O {[%clk 0:04:16]} 15. Qd4
{[%clk 0:04:08.8]} 15... e5 {[%clk 0:04:13.5]} 16. Qxe5 {[%clk 0:04:04.5]} 16...
Re8 {[%clk 0:04:11.9]} 17. f4 {[%clk 0:04:00.9]} 17... Rxe5+ {[%clk 0:04:10]}
18. fxe5 {[%clk 0:04:00.3]} 18... Qh4+ {[%clk 0:04:08.1]} 19. g3 {[%clk
0:03:59.1]} 19... Qe4+ {[%clk 0:04:06.4]} 20. Kf2 {[%clk 0:03:56.3]} 20... Qxh1
{[%clk 0:04:05]} 21. Bg2 {[%clk 0:03:54.9]} 21... Qxh2 {[%clk 0:04:02.8]} 22.
Ke3 {[%clk 0:03:45.4]} 22... Qxg2 {[%clk 0:04:01.2]} 23. a4 {[%clk 0:03:40.3]}
23... d4+ {[%clk 0:04:00.1]} 24. Kd3 {[%clk 0:03:37.4]} 24... Bf5+ {[%clk
0:03:57.7]} 25. Kxd4 {[%clk 0:03:33.5]} 25... Rd8+ {[%clk 0:03:54.7]} 26. Kc3
{[%clk 0:03:31.2]} 26... Qxd2+ {[%clk 0:03:52.6]} 27. Kc4 {[%clk 0:03:29.3]}
27... Rc8+ {[%clk 0:03:49.4]} 28. Kb5 {[%clk 0:03:28]} 28... Bd7+ {[%clk
0:03:45.9]} 29. Ka6 {[%clk 0:03:25.6]} 29... Qd5 {[%clk 0:03:29.1]} 30. Kxa7
{[%clk 0:03:23.7]} 30... Qc6 {[%clk 0:03:26.2]} 31. a5 {[%clk 0:03:21.7]} 31...
Ra8# {[%clk 0:03:24.4]} 0-1